bitfinex-derivatives/quotes_SOLF0:USTF0_20250624
["timestamp","ask_amount","ask_price","bid_price","bid_amount"]
[1750767119480,34.8,144.76,144.75,6.9041]
[1750767119680,34.8,144.79,144.75,6.9041]
[1750767119880,34.8,144.79,144.74,3.43308195]
[1750767120690,34.8,144.79,144.74,10.33738195]
[1750767121083,6.9034,144.77,144.74,10.33738195]
[1750767121688,6.9034,144.77,144.75,6.9041]
[1750767121979,6.9034,144.77,144.74,3.43308195]
[1750767122288,6.9034,144.77,144.75,6.904]
[1750767125289,34.8,144.79,144.73,3.43308195]
[1750767125491,34.8,144.79,144.75,3.43308195]
[1750767125992,6.9028,144.78,144.76,6.9033]
[1750767126782,34.8,144.79,144.75,3.43308195]
[1750767127477,41.7025,144.79,144.75,3.43308195]
[1750767127990,34.8,144.79,144.74,3.43308195]
[1750767128389,6.9038,144.76,144.74,10.33728195]
[1750767129189,9.06916074,144.78,144.68,37.0779]
[1750767129395,3.43308195,144.76,144.68,37.0779]
[1750767129600,34.8,144.75,144.68,10.34048195]
[1750767129891,34.8,144.75,144.68,3.43308195]
[1750767130285,34.8,144.75,144.69,6.9069]
[1750767130486,34.8,144.75,144.68,3.43308195]
[1750767130685,34.8,144.75,144.7,6.9062]
[1750767130686,6.9053,144.73,144.7,6.9062]
[1750767130895,34.8,144.75,144.7,3.43308195]
[1750767131378,41.7044,144.75,144.72,6.9054]
[1750767131582,34.8,144.75,144.7,3.43308195]
[1750767132488,6.9048,144.74,144.72,6.9053]
[1750767132894,34.8,144.75,144.72,3.43308195]
[1750767134287,34.8,144.75,144.7,3.43308195]
[1750767134488,34.8,144.75,144.69,34.8]
[1750767134489,34.8,144.75,144.69,3.43308195]
[1750767134695,6.9054,144.73,144.7,6.9062]
[1750767135299,6.9056,144.72,144.7,6.9062]
[1750767136498,6.9056,144.72,144.69,10.33988195]
[1750767137494,9.07288676,144.74,144.68,6.9072]
[1750767137692,3.43308195,144.74,144.68,6.9072]
[1750767138299,6.9067,144.7,144.68,6.9072]
[1750767138497,3.43308195,144.74,144.67,10.34078195]
[1750767138802,6.9072,144.69,144.67,3.43308195]
[1750767139700,6.9072,144.69,144.66,41.708]
[1750767140089,6.9072,144.69,144.67,6.9078]
[1750767143603,6.9072,144.69,144.66,6.908]
[1750767144000,6.9072,144.69,144.67,6.9078]
[1750767146304,6.9074,144.68,144.66,6.9081]
[1750767148007,34.8,144.71,144.65,8.08048195]
[1750767148594,34.8,144.71,144.66,6.9081]
[1750767149695,34.8,144.71,144.67,6.9078]
[1750767149902,6.9072,144.69,144.67,6.9078]
[1750767150606,34.8,144.71,144.67,3.43308195]
[1750767150908,34.8,144.71,144.69,3.43308195]
[1750767151306,6.9058,144.72,144.7,6.9065]
[1750767156315,6.906,144.71,144.69,6.9067]
[1750767156512,6.906,144.71,144.67,3.43308195]
[1750767157419,6.906,144.71,144.69,6.9068]
[1750767159216,6.9065,144.7,144.68,6.9072]
[1750767159520,34.8,144.74,144.67,3.43308195]
[1750767159703,6.9073,144.69,144.67,10.34058195]
[1750767160107,6.9073,144.69,144.67,6.9075]
[1750767160311,6.9067,144.7,144.68,6.9074]
[1750767160709,6.9069,144.69,144.68,6.9074]
[1750767161315,6.9063,144.71,144.69,6.9069]
[1750767161615,34.8,144.74,144.69,3.43308195]
[1750767162612,6.9053,144.73,144.69,3.43308195]
[1750767162819,34.8,144.74,144.69,3.43308195]
[1750767164119,34.8,144.77,144.71,3.43308195]
[1750767164325,6.9036,144.76,144.71,3.43308195]
[1750767164513,631.36,144.78,144.73,3.43308195]
[1750767164913,631.36,144.78,144.71,3.43308195]
[1750767165625,631.36,144.78,144.72,6.9055]
[1750767167218,6.9048,144.74,144.72,6.9055]
[1750767167921,6.9048,144.74,144.71,10.33878195]
[1750767168621,3.43308195,144.77,144.67,34.8]
[1750767168811,3.43308195,144.77,144.69,3.43308195]
[1750767169726,6.9058,144.72,144.7,6.9062]
[1750767170518,6.906,144.71,144.69,10.33978195]
[1750767170827,3.43308195,144.77,144.69,3.43308195]
[1750767171022,3.43308195,144.77,144.7,6.9062]
[1750767171624,3.43308195,144.77,144.71,6.9057]
[1750767172217,6.9053,144.73,144.7,6.9063]
[1750767172522,3.43308195,144.77,144.7,6.9063]
[1750767172723,6.9055,144.73,144.7,6.9063]
[1750767173821,6.9056,144.72,144.7,6.9063]
[1750767175126,6.9051,144.73,144.71,6.906]
[1750767179432,6.9047,144.74,144.72,6.9055]
[1750767179729,3.43308195,144.77,144.69,3.43308195]
[1750767179929,633.697,144.78,144.71,3.43308195]
[1750767180130,5.62565676,144.77,144.71,3.43308195]
[1750767180329,633.697,144.78,144.71,3.43397383]
[1750767180531,6.9043,144.75,144.73,6.9048]
[1750767180736,631.36,144.78,144.71,3.43397383]
[1750767181232,631.36,144.78,144.73,6.905]
[1750767182133,6.9043,144.75,144.73,6.905]
[1750767182732,631.36,144.78,144.72,6.9052]
[1750767183129,5.62892936,144.77,144.72,6.9052]
[1750767183332,34.8,144.78,144.72,6.9052]
[1750767183532,34.8,144.78,144.67,34.78]
[1750767183533,9.06260509,144.77,144.67,34.78]
[1750767183733,3.43397383,144.77,144.69,3.43397383]
[1750767184633,6.9051,144.73,144.71,6.9058]
[1750767186533,6.9048,144.74,144.72,6.9055]
[1750767187436,3.43397383,144.77,144.72,6.9055]
[1750767188131,6.9047,144.74,144.72,6.9055]
[1750767190036,6.9047,144.74,144.7,5.6398577]
[1750767190541,6.9047,144.74,144.71,6.9057]
[1750767190740,6.9053,144.73,144.71,6.9057]
[1750767192034,6.9054,144.73,144.7,6.9061]
[1750767192642,6.9054,144.73,144.71,6.906]
[1750767193243,6.9055,144.72,144.7,6.9062]
[1750767194341,6.9052,144.73,144.71,6.906]
[1750767195334,34.76,144.74,144.7,3.4344577]
[1750767196145,6.9053,144.73,144.71,6.9057]
[1750767198748,41.6648,144.74,144.71,6.9057]
[1750767200449,6.9051,144.73,144.71,6.9057]
[1750767200945,41.6647,144.74,144.72,6.9055]
[1750767207756,34.76,144.74,144.68,3.4344577]
[1750767208055,9.07512488,144.73,144.64,40.4487577]
[1750767208252,9.07512488,144.73,144.65,6.9086]
[1750767208253,6.9081,144.67,144.65,6.9086]
[1750767209547,6.9076,144.68,144.66,6.9082]
[1750767209750,34.74,144.69,144.63,81.07595259]
[1750767210059,34.74,144.69,144.63,84.51041029]
[1750767210252,34.74,144.69,144.63,3.4344577]
[1750767210962,6.9087,144.66,144.63,3.4344577]
[1750767212261,6.9087,144.66,144.64,6.9092]
[1750767212458,6.9089,144.65,144.63,3.4344577]
[1750767212671,5.60787455,144.68,144.61,9.0964]
[1750767212973,38.1744577,144.69,144.61,9.0964]
[1750767213272,6.9096,144.64,144.61,9.0964]
[1750767213672,6.9096,144.64,144.62,6.9103]
[1750767213966,6.9091,144.65,144.62,6.9103]
[1750767214175,38.1744577,144.69,144.63,6.9097]
[1750767214562,6.9087,144.66,144.63,6.9097]
[1750767214766,38.1744577,144.69,144.62,6.9101]
[1750767215073,6.9096,144.64,144.6,3.4344577]
[1750767215469,38.1744577,144.69,144.62,6.91]
[1750767216879,3.4344577,144.67,144.6,3.4344577]
[1750767217576,6.9101,144.63,144.6,10.3454577]
[1750767217881,6.9101,144.63,144.6,3.4344577]
[1750767218176,6.9101,144.63,144.6,10.3454577]
[1750767218379,34.76,144.64,144.6,6.911]
[1750767218380,6.9104,144.62,144.6,6.911]
[1750767218581,34.76,144.64,144.58,10.3462577]
[1750767219073,6.911,144.61,144.58,10.3462577]
[1750767219772,6.911,144.61,144.58,6.9118]
[1750767221082,6.911,144.61,144.57,3.4344577]
[1750767221573,6.911,144.61,144.58,6.9121]
[1750767223578,6.911,144.61,144.57,3.4344577]
[1750767223978,6.911,144.61,144.58,6.9118]
[1750767224282,6.9113,144.6,144.58,6.9118]
[1750767224883,6.9109,144.61,144.58,6.9118]
[1750767227283,6.9109,144.61,144.59,6.9116]
[1750767227482,34.76,144.64,144.59,3.4344577]
[1750767227673,34.76,144.64,144.61,3.4344577]
[1750767228279,34.76,144.64,144.62,6.9098]
[1750767228985,41.6694,144.64,144.62,6.9098]
[1750767230483,34.76,144.67,144.61,3.4344577]
[1750767231685,6.9086,144.66,144.64,6.9092]
[1750767232690,6.9088,144.65,144.63,6.9096]
[1750767233891,6.9088,144.65,144.62,6.91]
[1750767234089,6.9088,144.65,144.61,3.4344577]
[1750767234783,6.9088,144.65,144.63,6.9098]
[1750767234979,6.9088,144.65,144.61,3.4344577]
[1750767235185,6.9096,144.64,144.62,6.91]
[1750767235386,34.76,144.67,144.61,3.4344577]
[1750767236292,6.9101,144.63,144.6,11.7264]
[1750767236590,34.76,144.67,144.6,11.7264]
[1750767236792,6.9104,144.62,144.6,11.7264]
[1750767236990,6.9104,144.62,144.6,9.3257]
[1750767237292,34.76,144.67,144.6,9.3257]
[1750767237896,6.9105,144.62,144.6,2.4149]
[1750767238095,6.9105,144.62,144.59,10.3458577]
[1750767239394,6.9101,144.63,144.59,3.4344577]
[1750767240186,6.9104,144.62,144.59,3.4344577]
[1750767240490,3.4344577,144.66,144.59,3.4344577]
[1750767240689,36.9858,144.67,144.59,5.7926577]
[1750767241199,6.9095,144.64,144.62,6.9101]
[1750767241397,34.76,144.67,144.61,3.4344577]
[1750767241692,6.9089,144.65,144.63,6.9095]
[1750767242694,6.9089,144.65,144.61,10.3450577]
[1750767244094,6.9093,144.64,144.61,10.3450577]
[1750767245198,6.9099,144.63,144.61,3.4344577]
[1750767245591,34.76,144.67,144.61,3.4344577]
[1750767247201,6.9103,144.62,144.61,3.4344577]
[1750767249705,6.9108,144.61,144.6,2.3325]
[1750767250701,6.9108,144.61,144.59,5.7926577]
[1750767251504,6.9108,144.61,144.59,12.7041577]
[1750767251806,6.9108,144.61,144.59,5.7926577]
[1750767252906,48.5759,144.67,144.59,5.7926577]
[1750767253298,6.911,144.61,144.59,5.7926577]
[1750767253600,48.5759,144.67,144.59,5.7926577]
[1750767253802,6.9112,144.6,144.59,5.7926577]
[1750767255702,6.9112,144.6,144.59,3.4344577]
[1750767259117,6.9123,144.58,144.57,3.4344577]
[1750767259817,6.912,144.59,144.57,3.4344577]
[1750767260515,6.912,144.59,144.57,10.3470577]
[1750767263317,34.74,144.63,144.57,3.4344577]
[1750767264223,6.9117,144.59,144.57,10.3468577]
[1750767266419,6.9115,144.6,144.58,6.9122]
[1750767269324,2.2786,144.67,144.59,3.43955505]
[1750767269527,34.7,144.69,144.65,3.43955505]
[1750767269828,6.9067,144.7,144.67,10.34715505]
[1750767270228,5.5761812,144.71,144.68,3.43546373]
[1750767270415,34.7,144.72,144.68,3.43546373]
[1750767270816,6.9067,144.7,144.68,3.43546373]
[1750767272037,6.9067,144.7,144.68,10.34256373]
[1750767273636,6.9062,144.71,144.69,6.9068]
[1750767273827,34.7,144.72,144.7,3.43546373]
[1750767274027,34.7,144.75,144.7,3.43546373]
[1750767274335,6.9055,144.72,144.7,10.34166373]
[1750767277432,6.9055,144.72,144.7,3.43546373]
[1750767278437,6.906,144.71,144.7,3.43546373]
[1750767280534,6.907,144.69,144.68,3.43546373]
[1750767281538,6.9067,144.7,144.68,3.43546373]
[1750767283436,6.9069,144.69,144.68,3.43546373]
[1750767283940,6.9074,144.68,144.67,3.43546373]
[1750767289243,6.9072,144.69,144.67,10.34336373]
[1750767291344,34.68,144.71,144.68,6.9074]
[1750767291542,34.68,144.71,144.67,3.43546373]
[1750767291740,34.68,144.74,144.67,3.43546373]
[1750767292137,34.68,144.74,144.69,6.9066]
[1750767292138,6.9059,144.72,144.69,6.9066]
[1750767292730,6.906,144.71,144.69,6.9066]
[1750767293045,6.906,144.71,144.68,6.9072]
[1750767294243,6.9065,144.7,144.68,6.9072]
[1750767294442,38.11546373,144.74,144.67,10.34316373]
[1750767295143,6.9072,144.69,144.67,10.34316373]
[1750767295346,38.11546373,144.74,144.65,2.4]
[1750767295545,3.43546373,144.72,144.64,3.43546373]
[1750767295748,6.9081,144.67,144.64,3.43546373]
[1750767296640,6.9081,144.67,144.64,10.34456373]
[1750767297647,6.9081,144.67,144.65,6.9087]
[1750767299245,6.9075,144.68,144.66,6.9084]
[1750767300956,34.68,144.69,144.65,6.9086]
[1750767301152,34.68,144.69,144.64,3.43546373]
[1750767301853,34.68,144.69,144.66,6.9081]
[1750767302046,34.68,144.69,144.64,3.43546373]
[1750767302242,41.5872,144.69,144.64,3.43546373]
[1750767302853,41.5872,144.69,144.67,6.9078]
[1750767303255,34.68,144.69,144.66,3.43546373]
[1750767303958,34.68,144.69,144.68,6.9074]
[1750767304258,6.906,144.71,144.66,3.43546373]
[1750767304443,6.906,144.71,144.68,6.907]
[1750767305052,6.906,144.71,144.69,6.9068]
[1750767305658,34.64,144.72,144.68,3.43546373]
[1750767306354,6.9049,144.74,144.7,3.43546373]
[1750767307359,6.9049,144.74,144.72,6.9054]
[1750767307854,6.9049,144.74,144.7,3.43546373]
[1750767308060,6.9049,144.74,144.71,6.9057]
[1750767308264,34.64,144.75,144.66,2.3355]
[1750767308760,34.64,144.75,144.67,3.43546373]
[1750767308959,6.906,144.71,144.67,3.43546373]
[1750767309158,6.906,144.71,144.68,6.9072]
[1750767309953,6.9066,144.7,144.68,6.9072]
[1750767310260,6.9066,144.7,144.67,10.34316373]
[1750767310462,34.64,144.71,144.67,10.34316373]
[1750767311361,6.9066,144.7,144.67,10.34316373]
[1750767311862,34.64,144.71,144.67,10.34316373]
[1750767312053,34.64,144.71,144.67,6.9077]
[1750767312456,6.907,144.69,144.66,10.34366373]
[1750767312861,6.907,144.69,144.66,3.43546373]
[1750767313749,6.907,144.69,144.66,10.34356373]
[1750767315953,34.64,144.71,144.66,3.43546373]
[1750767315954,6.9076,144.68,144.66,3.43546373]
[1750767316154,6.9076,144.68,144.65,6.9086]
[1750767316552,6.9074,144.69,144.66,6.9081]
[1750767317370,6.9075,144.68,144.66,6.9081]
[1750767318265,6.9072,144.69,144.67,6.9078]
[1750767318871,6.9072,144.69,144.66,6.9082]
[1750767319168,6.9072,144.69,144.65,3.43546373]
[1750767319358,6.9074,144.68,144.66,6.9081]
[1750767320360,6.9071,144.69,144.67,6.9079]
[1750767320761,34.64,144.71,144.67,3.43546373]
[1750767321064,6.9068,144.7,144.67,10.34296373]
[1750767321768,6.9071,144.69,144.67,10.34296373]
[1750767321970,6.9071,144.69,144.66,6.9081]
[1750767322670,6.9067,144.7,144.67,3.43546373]
[1750767322864,34.64,144.71,144.67,3.43546373]
[1750767323064,34.64,144.71,144.69,3.43546373]
[1750767324273,34.64,144.71,144.7,6.9065]
[1750767324670,6.9058,144.72,144.7,6.9065]
[1750767325573,6.905,144.73,144.71,6.906]
[1750767325764,34.64,144.74,144.71,3.43546373]
[1750767326165,34.64,144.74,144.73,3.43546373]
[1750767326678,34.64,144.77,144.73,3.43546373]
[1750767327270,6.9045,144.74,144.73,3.43546373]
[1750767328569,6.9052,144.73,144.71,3.43546373]
[1750767329074,6.9046,144.74,144.72,6.9054]
[1750767329275,6.9046,144.74,144.71,3.43546373]
[1750767329474,34.64,144.77,144.73,3.43546373]
[1750767329676,6.9038,144.76,144.73,10.34026373]
[1750767332072,6.9038,144.76,144.74,6.9045]
[1750767333068,34.6,144.78,144.73,3.43546373]
[1750767333777,6.9035,144.77,144.74,6.9043]
[1750767333984,6.9035,144.77,144.73,3.43546373]
[1750767334178,6.9035,144.77,144.74,6.9041]
[1750767334383,6.9035,144.77,144.73,3.43546373]
[1750767334587,6.9035,144.77,144.75,6.9038]
[1750767334878,6.9035,144.77,144.73,3.43546373]
[1750767335082,6.9035,144.77,144.74,6.9042]
[1750767337182,6.9035,144.77,144.75,6.904]
[1750767338082,41.5031,144.78,144.75,6.904]
[1750767338385,34.6,144.78,144.75,6.904]
[1750767338879,6.9034,144.77,144.74,6.9043]
[1750767339977,6.9037,144.76,144.74,6.9043]
[1750767340278,6.9037,144.76,144.73,10.34026373]
[1750767340475,6.905,144.74,144.7,37.0178]
[1750767340675,3.43546373,144.77,144.69,3.43546373]
[1750767340877,34.6,144.74,144.67,38.03546373]
[1750767341080,3.43546373,144.73,144.66,6.9082]
[1750767342083,6.9072,144.69,144.66,6.9082]
[1750767342779,6.9074,144.68,144.65,12.56056373]
[1750767343884,6.9079,144.67,144.64,41.5091]
[1750767344083,6.9079,144.67,144.64,6.9091]
[1750767347686,34.6,144.7,144.64,6.9091]
[1750767348190,34.6,144.7,144.63,12.67696373]
[1750767348391,34.6,144.7,144.63,5.76726373]
[1750767348892,6.9081,144.67,144.64,6.9091]
[1750767349394,6.9081,144.67,144.64,6.9092]
[1750767351485,6.9076,144.68,144.63,5.76726373]
[1750767351792,34.6,144.7,144.65,3.43546373]
[1750767351982,34.6,144.7,144.67,3.43546373]
[1750767353490,34.6,144.7,144.68,6.9071]
[1750767354189,41.5065,144.7,144.68,6.9071]
[1750767355292,34.6,144.7,144.68,6.9071]
[1750767355487,34.6,144.7,144.69,6.9069]
[1750767355879,6.9056,144.72,144.69,3.43546373]
[1750767356086,34.62,144.73,144.69,3.43546373]
[1750767356280,6.9044,144.75,144.71,3.43546373]
[1750767356592,34.62,144.76,144.74,6.9045]
[1750767356794,34.62,144.76,144.73,3.43546373]
[1750767357092,41.5239,144.76,144.73,10.34006373]
[1750767358890,34.62,144.76,144.73,3.43546373]
[1750767359391,34.6,144.79,144.75,3.43546373]
[1750767359697,34.6,144.79,144.72,3.43546373]
[1750767359698,34.6,144.79,144.77,3.43546373]
[1750767359895,34.6,144.82,144.77,3.43546373]
[1750767360391,6.9019,144.8,144.77,10.33826373]
[1750767360586,34.6,144.82,144.77,10.33826373]
[1750767360787,38.03546373,144.82,144.74,3.43546373]
[1750767361290,2.2548,144.81,144.74,3.43546373]
[1750767361792,3.43546373,144.8,144.72,3.43546373]
[1750767362097,7.84509991,144.81,144.72,3.43546373]
[1750767362098,3.43546373,144.78,144.72,3.43546373]
[1750767362287,34.6,144.77,144.72,3.43546373]
[1750767362684,34.6,144.77,144.7,5.64116373]
[1750767362889,3.43546373,144.76,144.68,38.03546373]
[1750767363092,5.83446373,144.76,144.68,38.03546373]
[1750767363292,6.9067,144.7,144.68,3.43546373]
[1750767363494,34.6,144.73,144.68,3.43546373]
[1750767363897,6.9065,144.7,144.68,3.43546373]
[1750767364098,34.6,144.73,144.68,3.43546373]
[1750767364500,6.9065,144.7,144.68,3.43546373]
[1750767365100,6.9062,144.71,144.68,10.34286373]
[1750767367292,6.9065,144.7,144.68,10.34286373]
[1750767368002,6.9062,144.71,144.68,10.34286373]
[1750767368503,34.6,144.73,144.67,3.43546373]
[1750767369102,6.907,144.69,144.67,3.43546373]
[1750767370306,6.9065,144.7,144.67,10.34336373]
[1750767371007,34.6,144.73,144.67,3.43546373]
[1750767371396,6.9067,144.7,144.67,10.34306373]
[1750767371597,34.6,144.73,144.67,3.43546373]
[1750767371900,6.9068,144.7,144.67,10.34306373]
[1750767372405,6.9076,144.68,144.65,10.34416373]
[1750767372607,38.03880409,144.67,144.58,3.43880409]
[1750767372904,3.43880409,144.65,144.57,5.73410409]
[1750767373100,38.0404092,144.66,144.58,3.4404092]
[1750767373604,6.9111,144.61,144.58,3.4404092]
[1750767373801,34.6,144.62,144.58,3.4404092]
[1750767374902,6.9114,144.6,144.58,3.4404092]
[1750767375098,34.6,144.62,144.57,2.2953]
[1750767375406,6.912,144.59,144.57,2.2953]
[1750767378016,6.9113,144.6,144.57,9.2079]
[1750767378215,6.9113,144.6,144.57,2.2953]
[1750767378411,34.6,144.62,144.57,2.2953]
[1750767379512,34.6,144.63,144.58,3.4404092]
[1750767379815,6.9108,144.61,144.58,3.4404092]
[1750767380610,6.9108,144.61,144.58,10.3523092]
[1750767381209,6.9108,144.61,144.59,6.9117]
[1750767384020,6.9108,144.61,144.58,10.3523092]
[1750767384719,6.9108,144.61,144.59,6.9117]
[1750767385219,6.9108,144.61,144.58,10.3524092]
[1750767385420,6.9108,144.61,144.58,3.4404092]
[1750767387124,6.9108,144.61,144.59,6.9117]
[1750767389526,6.9105,144.62,144.6,6.9112]
[1750767389821,2.2625,144.68,144.6,3.4404092]
[1750767390024,6.9089,144.65,144.62,3.4404092]
[1750767390320,34.74,144.68,144.61,3.4404092]
[1750767390522,6.9096,144.64,144.61,3.4404092]
[1750767390724,38.1804092,144.68,144.59,3.4404092]
[1750767391326,6.9095,144.64,144.61,10.3507092]
[1750767392521,6.9095,144.64,144.62,6.9102]
[1750767392918,6.9091,144.65,144.62,6.9102]
[1750767395732,6.9091,144.65,144.63,6.9096]
[1750767395939,6.9086,144.66,144.61,3.4404092]
[1750767397335,6.9086,144.66,144.64,6.9093]
[1750767398532,34.74,144.68,144.65,3.4404092]
[1750767398927,6.9082,144.67,144.65,10.3489092]
[1750767399728,631.44,144.69,144.65,3.4404092]
[1750767400125,631.44,144.69,144.63,3.4404092]
[1750767401332,6.9086,144.66,144.63,3.4404092]
[1750767401729,6.9091,144.65,144.63,3.4404092]
[1750767401935,631.44,144.69,144.63,3.4404092]
[1750767402337,6.9093,144.64,144.63,3.4404092]
[1750767410260,2.2863,144.72,144.63,3.43743686]
[1750767410449,34.74,144.71,144.66,3.43743686]
[1750767411349,6.9068,144.7,144.66,3.43743686]
[1750767411651,34.74,144.71,144.66,3.43743686]
[1750767412251,6.9067,144.7,144.67,6.9078]
[1750767413353,8.5927576,144.79,144.64,34.74]
[1750767413547,45.35065879,144.78,144.71,3.43632133]
[1750767413846,5.03592301,144.77,144.71,3.43632133]
[1750767414055,34.74,144.78,144.71,3.43632133]
[1750767414547,6.904,144.76,144.71,3.43632133]
[1750767415051,38.17632133,144.78,144.68,34.74]
[1750767415239,3.43632133,144.76,144.68,38.17632133]
[1750767415846,6.9056,144.72,144.68,3.43632133]
[1750767416252,6.9056,144.72,144.69,6.9067]
[1750767416955,34.74,144.73,144.68,6.9072]
[1750767417553,6.9067,144.7,144.68,6.9072]
[1750767417754,6.9067,144.7,144.67,6.9077]
[1750767418155,6.9079,144.67,144.64,6.9091]
[1750767418747,6.9079,144.67,144.62,3.43632133]
[1750767418951,6.9076,144.68,144.62,3.43632133]
[1750767419356,34.72,144.69,144.62,3.43632133]
[1750767419853,34.72,144.69,144.64,6.9092]
[1750767420356,6.9081,144.67,144.64,6.9092]
[1750767420757,34.72,144.69,144.62,3.43632133]
[1750767421058,41.6273,144.69,144.62,3.43632133]
[1750767421558,6.9075,144.68,144.62,3.43632133]
[1750767421860,34.72,144.69,144.62,3.43632133]
[1750767422358,6.9079,144.67,144.65,6.9086]
[1750767422661,34.72,144.69,144.65,6.9086]
[1750767422859,6.9081,144.67,144.65,6.9086]
[1750767424659,34.72,144.69,144.62,3.43632133]
[1750767425365,6.9086,144.66,144.63,6.9095]
[1750767425658,3.43632133,144.68,144.58,62.0]
[1750767425859,3.43632133,144.66,144.59,3.43632133]
[1750767426266,6.9101,144.63,144.6,6.9109]
[1750767426452,34.84,144.67,144.61,3.43632133]
[1750767426958,6.9086,144.66,144.63,6.9094]
[1750767427153,6.9086,144.66,144.61,3.43632133]
[1750767427560,41.748,144.67,144.61,3.43632133]
[1750767427759,41.748,144.67,144.63,3.43632133]
[1750767428162,41.748,144.67,144.64,6.9092]
[1750767428660,6.9085,144.66,144.64,6.9092]
[1750767429060,34.84,144.67,144.64,6.9092]
[1750767429364,34.84,144.67,144.63,10.34582133]
[1750767429568,34.84,144.67,144.63,3.43632133]
[1750767430060,6.9087,144.66,144.64,6.909]
[1750767430457,34.84,144.67,144.64,6.909]
[1750767430662,34.84,144.67,144.61,5.74092133]
[1750767431162,6.9091,144.65,144.61,5.74092133]
[1750767431363,34.84,144.67,144.61,5.74092133]
[1750767431562,6.9092,144.65,144.63,6.9098]
[1750767432367,6.9093,144.64,144.62,6.91]
[1750767434160,6.9098,144.63,144.61,10.34692133]
[1750767434654,34.84,144.67,144.59,3.43632133]
[1750767434861,6.9101,144.63,144.59,3.43632133]
[1750767435260,6.9101,144.63,144.61,6.9107]
[1750767436461,3.43632133,144.66,144.58,3.43632133]
[1750767436666,34.84,144.63,144.58,3.43632133]
[1750767436869,6.9109,144.61,144.58,3.43632133]
[1750767437165,34.84,144.63,144.57,34.84]
[1750767437354,34.84,144.63,144.56,5.78512133]
[1750767437962,6.9116,144.6,144.57,6.9125]
[1750767439470,6.9116,144.6,144.56,5.78512133]
[1750767439471,6.9118,144.59,144.54,38.27632133]
[1750767439664,3.43632133,144.62,144.54,38.27632133]
[1750767440468,3.43632133,144.62,144.54,34.84]
[1750767440666,6.9118,144.59,144.56,6.9128]
[1750767441073,6.9118,144.59,144.57,6.9127]
[1750767441766,6.9118,144.59,144.56,6.9129]
[1750767442671,6.9118,144.59,144.57,6.9127]
[1750767443773,6.9118,144.59,144.56,6.9129]
[1750767444169,3.43632133,144.62,144.55,3.43632133]
[1750767444170,6.9123,144.58,144.55,3.43632133]
[1750767444377,3.43632133,144.58,144.49,12.68841362]
[1750767444565,3.43632133,144.58,144.48,2.2206]
[1750767444771,6.9154,144.52,144.49,6.9164]
[1750767445072,34.84,144.54,144.49,6.9164]
[1750767445266,6.9158,144.51,144.48,9.1373]
[1750767445467,38.27632133,144.54,144.46,34.84]
[1750767445883,38.27632133,144.54,144.45,3.43632133]
[1750767446266,6.9166,144.49,144.45,3.43632133]
[1750767446564,38.27632133,144.54,144.45,3.43632133]
[1750767446966,38.27632133,144.54,144.47,6.9172]
[1750767447370,6.9172,144.48,144.45,6.9181]
[1750767447875,6.9175,144.47,144.44,6.9186]
[1750767448272,34.86,144.49,144.42,41.7759]
[1750767448476,6.9178,144.47,144.44,6.9186]
[1750767448676,34.86,144.49,144.42,34.84]
[1750767449071,6.9179,144.47,144.41,3.43632133]
[1750767449582,34.86,144.49,144.41,3.43632133]
[1750767450272,6.9175,144.47,144.44,6.9187]
[1750767450772,34.86,144.49,144.41,3.43632133]
[1750767451173,6.9177,144.47,144.44,6.9186]
[1750767451671,6.918,144.46,144.43,6.9192]
[1750767451871,34.86,144.49,144.41,3.43632133]
[1750767452070,3.43632133,144.48,144.41,3.43632133]
[1750767452478,6.918,144.46,144.42,6.9195]